bitfinex/quotes_ETHUSD_20260306
["timestamp","ask_amount","ask_price","bid_price","bid_amount"]
[1772811820959,1.32223069,1982.9,1981.6,0.815]
[1772811821165,1.32223069,1982.9,1981.4,1.26169048]
[1772811821356,1.32223069,1982.9,1981.5,0.815]
[1772811821737,0.33805333,1983.1,1981.5,1.30980636]
[1772811821966,2.51669027,1983.4,1981.4,1.26169048]
[1772811821967,1.32223069,1983.2,1981.9,1.30980636]
[1772811822239,1.32223069,1983.0,1982.0,0.815]
[1772811822735,5.04261005,1983.2,1982.0,2.12480636]
[1772811822736,1.32223069,1983.2,1982.0,2.12480636]
[1772811823964,3.77719109,1983.4,1982.2,1.30980636]
[1772811824265,1.32223069,1983.9,1982.2,1.30980636]
[1772811824464,1.32223069,1983.9,1982.3,0.065536]
[1772811824670,1.32223069,1983.9,1982.4,1.30980636]
[1772811825273,1.32223069,1984.5,1982.6,1.30980636]
[1772811825443,1.32223069,1984.4,1982.8,1.30980636]
[1772811825647,1.32223069,1984.4,1982.9,2.12480636]
[1772811825846,2.58212082,1984.3,1983.0,1.26071608]
[1772811826061,1.32223069,1984.2,1983.0,1.26071608]
[1772811826259,1.32223069,1984.2,1983.1,0.815]
[1772811827970,2.58224782,1984.1,1983.2,1.26058894]
[1772811828169,1.32223069,1984.0,1983.2,1.26058894]
[1772811828690,1.32223069,1984.0,1982.7,1.26090684]
[1772811828883,1.32223069,1983.8,1982.6,0.815]
[1772811830098,1.32223069,1983.6,1982.7,1.26090684]
[1772811830264,1.32223069,1983.6,1982.7,2.07590684]
[1772811831386,1.32223069,1983.6,1982.7,2.07700684]
[1772811832101,1.26127121,1983.7,1982.7,3.3868132]
[1772811832102,0.001,1983.7,1982.7,3.3868132]
[1772811832283,0.001,1983.7,1982.8,0.815]
[1772811832597,1.32323069,1983.7,1982.8,0.815]
[1772811833482,1.32323069,1983.7,1982.7,1.26200684]
[1772811833680,1.32323069,1983.7,1982.8,0.814]
[1772811833889,1.32323069,1983.7,1982.7,0.0011]
[1772811834098,1.32323069,1983.7,1982.7,2.07600237]
[1772811834394,1.32223069,1983.5,1982.7,2.07600447]
[1772811834995,1.32223069,1983.5,1982.7,0.8151]
[1772811835498,1.32223069,1983.5,1982.7,2.07599905]
[1772811835664,1.32223069,1983.5,1982.7,0.0011]
[1772811836072,1.32223069,1983.5,1982.5,0.0011]
[1772811836290,1.27712842,1983.3,1982.5,1.26212889]
[1772811836489,1.27712842,1983.3,1982.5,0.0011]
[1772811837101,1.27712842,1983.3,1982.5,0.8151]
[1772811838291,2.53770305,1983.3,1982.5,2.07608304]
[1772811838486,1.27712842,1983.2,1982.6,0.814]
[1772811838996,1.27712842,1983.2,1982.5,0.0011]
[1772811839296,1.27712842,1983.2,1982.5,2.0761277]
[1772811840397,1.26065251,1983.1,1982.5,2.0761277]
[1772811840600,1.26059894,1983.2,1982.5,2.0761277]
[1772811841495,1.26059894,1983.2,1982.6,0.814]
[1772811841696,2.6642168,1983.6,1982.7,1.29283078]
[1772811841883,1.26132729,1983.7,1982.7,1.29283078]
[1772811842089,1.26129603,1983.7,1982.7,1.29283078]
[1772811842268,0.001,1983.7,1982.7,1.29283078]
[1772811842468,0.001,1983.7,1982.9,1.29283078]
[1772811844084,0.001,1983.7,1982.8,1.26084325]
[1772811844271,1.40486742,1983.7,1982.9,0.815]
[1772811844682,1.26132224,1983.7,1983.0,1.26071608]
[1772811845200,1.26132224,1983.7,1982.8,0.815]
[1772811845408,0.001,1983.7,1982.8,2.10783078]
[1772811845701,0.001,1983.7,1982.9,1.29283078]
[1772811846399,1.26127614,1983.7,1983.0,0.815]
[1772811846773,1.40486742,1983.7,1982.7,5.04339175]
[1772811846974,1.40486742,1983.7,1982.8,0.815]
[1772811847176,0.001,1983.7,1982.8,2.10783078]
[1772811847812,0.001,1983.7,1982.9,1.29283078]
[1772811848416,0.001,1983.7,1983.0,0.815]
[1772811848805,0.001,1983.7,1983.1,1.26065251]
[1772811848983,0.001,1983.7,1983.2,1.29283078]
[1772811849678,0.001,1983.7,1983.3,0.815]
[1772811850488,0.001,1983.7,1983.4,0.815]
[1772811851205,0.001,1983.7,1983.1,5.04260094]
[1772811851399,0.001,1983.7,1983.4,0.815]
[1772811851985,0.001,1983.7,1983.5,0.815]
[1772811852193,0.001,1983.7,1983.4,0.815]
[1772811853495,0.001,1983.7,1983.4,2.07545214]
[1772811853699,1.26012151,1984.0,1983.4,2.07545214]
[1772811853900,5.03925306,1984.5,1983.5,1.29283078]
[1772811854085,1.26074775,1984.6,1983.5,1.29283078]
[1772811854424,1.40386742,1984.5,1983.6,0.815]
[1772811854715,1.40386742,1984.5,1983.5,1.29283078]
[1772811855016,1.40386742,1984.5,1983.6,0.816]
[1772811855254,1.40386742,1984.5,1983.0,1.26071608]
[1772811855524,1.40386742,1984.3,1983.1,0.816]
[1772811855685,1.40386742,1984.3,1983.2,0.816]
[1772811856385,0.001,1983.6,1983.2,0.816]
[1772811856600,0.001,1983.6,1982.8,0.0011]
[1772811856881,1.40486742,1983.6,1983.2,0.816]
[1772811857086,1.40486742,1983.6,1982.8,0.0011]
[1772811857329,1.40486742,1983.6,1982.9,0.816]
[1772811857820,1.26134098,1983.6,1983.0,1.26071608]
[1772811858314,2.6652084,1983.6,1983.1,0.816]
[1772811858786,2.6652084,1983.6,1982.8,1.26189487]
[1772811858988,2.6652084,1983.6,1982.9,0.816]
[1772811859227,0.001,1983.6,1982.8,1.26193769]
[1772811859394,0.001,1983.6,1983.0,0.816]
[1772811859725,1.26133887,1983.6,1982.9,1.29283078]
[1772811859943,0.001,1983.6,1983.1,0.816]
[1772811860228,5.04027863,1984.2,1983.2,1.29283078]
[1772811860229,1.26001713,1984.1,1983.2,1.29283078]
[1772811860516,1.40386742,1984.0,1983.3,0.817]
[1772811861018,1.40386742,1984.0,1983.0,1.26071608]
[1772811861388,1.40386742,1984.0,1983.1,0.817]
[1772811862093,1.26014416,1983.9,1983.2,0.817]
[1772811862297,2.66401158,1983.9,1983.2,0.817]
[1772811862495,5.04006854,1984.2,1983.2,2.10983078]
[1772811862496,1.40386742,1984.2,1983.2,2.10983078]
[1772811863187,5.03910085,1984.5,1983.2,2.10983078]
[1772811863188,2.66367831,1984.5,1983.3,1.29283078]
[1772811864015,2.66367831,1984.5,1983.5,1.29283078]
[1772811864524,1.26070116,1984.6,1983.5,1.29283078]
[1772811864705,1.26070082,1984.6,1983.5,1.29283078]
[1772811865527,1.26070852,1984.6,1983.5,1.29283078]
[1772811866111,0.001,1984.6,1983.6,2.55316552]
[1772811866303,0.001,1984.6,1983.7,0.817]
[1772811866504,1.40486742,1984.6,1983.8,0.817]
[1772811866705,1.40486742,1984.6,1983.6,1.26033474]
[1772811866904,1.40486742,1984.6,1983.7,0.817]
[1772811867344,1.40486742,1984.6,1983.6,1.26033474]
[1772811867535,1.40486742,1984.6,1983.7,0.817]
[1772811868103,2.66363058,1984.5,1983.7,2.07721516]
[1772811868504,0.001,1984.4,1983.7,2.07721516]
[1772811869227,1.40486742,1984.4,1983.3,5.0420729]
[1772811869532,1.40486742,1984.4,1983.4,0.817]
[1772811870036,2.66375755,1984.3,1983.2,4.06145616]
[1772811870204,1.40386742,1984.2,1983.2,4.06145616]
[1772811870533,1.40386742,1984.2,1983.3,0.817]
[1772811871834,1.40386742,1984.2,1983.3,2.06594444]
[1772811872024,1.26087257,1984.4,1983.4,1.24894444]
[1772811872334,1.26087257,1984.4,1983.5,1.26039828]
[1772811872531,1.34733496,1984.3,1983.5,1.26039828]
[1772811872712,1.34733496,1984.3,1983.6,0.818]
[1772811873433,1.26087257,1984.4,1983.6,2.06694444]
[1772811873434,0.001,1984.4,1983.6,2.06694444]
[1772811874235,0.001,1984.4,1983.7,0.818]
[1772811874236,1.34733496,1984.2,1983.7,0.818]
[1772811874732,1.34733496,1984.2,1983.3,2.509433]
[1772811874911,1.34733496,1984.2,1983.4,0.818]
[1772811876420,1.34733496,1984.0,1983.4,2.07842952]
[1772811877943,1.34733496,1984.3,1983.5,1.24894444]
[1772811878321,1.34733496,1984.3,1983.6,1.26033474]
[1772811878322,1.25995363,1984.2,1983.6,1.26033474]
[1772811878634,2.60728859,1984.2,1983.6,1.26033474]
[1772811879038,2.60820649,1984.4,1983.6,1.26033474]
[1772811879212,1.34733496,1984.3,1983.6,1.26033474]
[1772811880134,1.34733496,1984.3,1983.3,2.50946982]
[1772811880320,2.60728859,1984.2,1983.5,1.26149828]
[1772811880521,0.001,1984.1,1983.5,1.26149828]
[1772811881435,0.001,1984.1,1983.5,2.51044272]
[1772811881837,1.34833496,1984.1,1983.5,1.26149828]
[1772811882021,1.34833496,1984.1,1983.6,0.82]
[1772811882830,0.001,1984.1,1983.7,1.26027121]
[1772811883226,1.26102268,1984.1,1983.7,1.26027121]
[1772811883425,0.001,1984.1,1983.7,1.26027121]
[1772811884026,1.26101734,1984.1,1983.7,1.26027121]
[1772811884238,0.001,1984.1,1983.7,1.26027121]
[1772811885529,0.001,1984.4,1983.8,1.24894444]
[1772811886249,0.001,1984.6,1983.9,1.24894444]
[1772811886419,0.001,1984.6,1984.0,2.06994444]
[1772811886814,0.001,1984.6,1984.1,1.26001713]
[1772811887020,0.001,1984.6,1984.1,2.50896157]
[1772811887220,2.6067392,1985.1,1984.3,1.24894444]
[1772811887439,2.60671756,1985.1,1984.4,0.821]
[1772811887747,1.34733496,1985.0,1984.4,0.821]
[1772811888539,1.34733496,1985.0,1984.1,1.26001713]
[1772811888740,1.34733496,1985.0,1984.5,0.822]
[1772811889041,1.34733496,1984.8,1984.1,1.26001713]
[1772811889517,1.34733496,1984.8,1984.2,0.822]
[1772811889716,1.25950929,1984.9,1984.2,0.822]
[1772811890125,2.60684425,1984.9,1984.2,0.822]
[1772811890352,1.34733496,1984.8,1984.2,0.822]
[1772811890564,1.34733496,1984.8,1984.1,1.26001713]
[1772811890847,1.34733496,1984.8,1984.3,0.823]
[1772811891024,1.34733496,1984.6,1984.3,0.823]
[1772811891225,1.34733496,1984.6,1983.7,6.28977516]
[1772811891226,1.34733496,1984.6,1983.7,1.24894444]
[1772811891429,1.34733496,1984.6,1983.8,0.823]
[1772811891953,5.03854486,1984.9,1984.0,1.24894444]
[1772811891954,15.11563458,1984.9,1984.0,1.24894444]
[1772811892134,8.0,1984.7,1984.0,1.24894444]
[1772811892334,1.34733496,1984.6,1984.1,0.823]
[1772811892543,1.34733496,1984.6,1983.8,0.823]
[1772811892544,1.34733496,1984.5,1983.8,0.823]
[1772811892846,1.34733496,1984.4,1983.8,0.823]
[1772811893244,15.11563458,1984.3,1983.9,1.26014416]
[1772811893750,15.11563458,1984.2,1983.9,1.26014416]
[1772811894049,2.60701949,1984.7,1983.9,1.26014416]
[1772811894244,2.60701949,1984.7,1984.0,0.824]
[1772811894420,1.34733496,1984.7,1984.0,0.824]
[1772811894744,7.11563458,1984.6,1984.0,0.824]
[1772811895449,7.11563458,1984.5,1984.1,1.26001713]
[1772811897027,7.11563458,1984.5,1983.9,5.04055736]
[1772811897220,8.70308257,1984.5,1984.0,0.824]
[1772811897427,1.25982664,1984.4,1984.1,0.825]
[1772811897946,7.11563458,1984.3,1984.1,0.825]
[1772811898161,7.11563458,1984.3,1984.0,0.825]
[1772811898447,7.11563458,1984.3,1983.6,5.04109892]
[1772811898448,7.11563458,1984.2,1983.9,0.825]
[1772811899535,7.11563458,1984.2,1984.0,1.26008064]
[1772811899858,6.62626808,1984.6,1983.9,0.825]
[1772811899859,2.84718886,1984.6,1983.9,0.825]
[1772811900040,7.11563458,1984.4,1983.9,2.08513568]
[1772811900426,8.70308257,1984.3,1984.0,0.826]
[1772811900651,7.11563458,1984.5,1984.0,0.826]
[1772811900951,8.70308257,1984.5,1984.0,0.826]
[1772811901366,1.58744799,1984.4,1983.6,5.04120812]
[1772811901659,1.58744799,1984.4,1983.8,1.26020768]
[1772811901860,8.763356,1984.3,1983.9,0.826]
[1772811902060,1.64772142,1984.2,1983.5,1.26147035]
[1772811902250,1.64772142,1984.1,1983.5,1.26147035]
[1772811902456,1.64772142,1984.1,1983.6,0.826]
[1772811902962,1.64772142,1984.1,1983.5,1.26147035]
[1772811902963,1.64772142,1983.9,1983.5,0.0011]
[1772811903164,1.64772142,1983.9,1983.4,0.0011]
[1772811903461,1.64772142,1983.7,1983.4,0.0011]
[1772811903640,1.072,1984.3,1983.4,0.0011]
[1772811903641,1.26017828,1983.9,1983.4,0.0011]
[1772811903844,2.90785367,1984.0,1983.4,0.0011]
[1772811904156,8.763356,1983.9,1983.4,0.0011]
[1772811905739,10.02355095,1983.9,1983.4,0.0011]
[1772811905965,10.02355095,1983.9,1983.4,0.8281]
[1772811906536,2.90791637,1983.9,1983.4,0.8281]
[1772811906767,7.11563458,1983.8,1983.4,0.8281]
[1772811907339,2.90772865,1984.2,1983.4,2.4365946]
[1772811907643,7.11563458,1984.0,1983.4,2.4365946]
[1772811907848,7.11563458,1984.0,1983.5,1.26039828]
[1772811908044,6.11258675,1984.7,1983.5,1.26039828]
[1772811908045,1.64872142,1984.8,1983.7,1.6084946]
[1772811908243,2.90831371,1984.8,1983.7,1.6084946]
[1772811908649,2.90830012,1984.8,1983.7,1.6084946]
[1772811909068,0.001,1984.8,1983.7,1.6084946]
[1772811909272,1.64772142,1985.1,1983.8,1.6084946]
[1772811909564,1.64772142,1985.1,1983.9,1.6084946]
[1772811909738,1.25944584,1985.0,1984.0,2.86857524]
[1772811910570,1.64772142,1984.9,1984.1,0.829]
[1772811911068,1.25942685,1985.1,1984.1,2.4374946]
[1772811911240,2.90714827,1985.1,1984.1,2.4374946]
[1772811911657,6.11128688,1985.6,1984.2,1.6084946]
[1772811911836,1.64772142,1985.2,1984.3,2.08889013]
[1772811912242,1.64772142,1985.2,1984.3,1.25989013]
[1772811912474,1.64772142,1985.2,1983.9,1.26014416]
[1772811912669,1.64772142,1985.2,1984.1,0.829]
[1772811912844,1.64772142,1985.2,1983.6,1.26033474]
[1772811913165,1.64772142,1985.0,1983.7,0.829]
[1772811913339,1.64772142,1985.0,1983.8,0.829]
[1772811913739,1.64772142,1985.0,1983.6,0.83]
[1772811913946,1.64772142,1985.0,1983.4,5.04269314]
[1772811913947,1.64772142,1984.8,1983.4,0.0011]
[1772811914148,1.64772142,1984.8,1983.4,1.26154803]
[1772811914356,1.64772142,1984.8,1983.4,1.2615617]
[1772811914570,1.64772142,1984.8,1983.5,1.6084946]
[1772811915849,1.25963621,1984.7,1983.6,2.86882934]
[1772811916049,1.64772142,1984.6,1983.6,2.86882934]
[1772811916350,1.64772142,1984.6,1983.4,1.26153964]
[1772811916755,1.64772142,1984.6,1983.4,2.09154872]
[1772811917150,1.64772142,1984.6,1983.4,0.8311]
[1772811917345,1.64772142,1984.6,1983.5,0.0011]
[1772811917744,1.64772142,1984.4,1983.5,0.0011]
[1772811918056,1.25989013,1984.3,1983.5,0.0011]
[1772811918460,1.64772142,1984.3,1983.6,0.83]
[1772811918961,1.25983269,1984.4,1983.6,0.83]
[1772811919375,1.25983269,1984.4,1983.7,0.83]
[1772811920456,1.64772142,1984.4,1983.6,0.83]
[1772811920850,1.64772142,1984.4,1983.5,0.0011]
[1772811922649,1.25989013,1984.3,1983.5,0.0011]
[1772811923053,2.90761155,1984.3,1983.5,0.0011]
[1772811923871,1.25989013,1984.3,1983.5,1.6095946]
[1772811924275,1.25989013,1984.3,1983.5,0.0011]
[1772811924276,2.90761155,1984.3,1983.5,0.0011]
[1772811924478,2.90761155,1984.3,1983.6,0.831]
[1772811924652,5.04006357,1984.5,1983.7,1.26027121]
[1772811924653,1.26076316,1984.5,1983.7,1.26027121]
[1772811924979,1.64772142,1984.4,1983.7,1.26027121]
[1772811925174,1.64772142,1984.4,1983.7,2.09127121]
[1772811925388,0.001,1984.5,1983.8,1.6084946]
[1772811926081,0.001,1984.5,1983.6,1.2602983]
[1772811926278,1.64872142,1984.5,1983.5,0.0011]
[1772811926460,1.64872142,1984.5,1983.5,2.0924908]
[1772811926657,1.64872142,1984.5,1983.5,0.0011]
[1772811926982,1.64772142,1984.3,1983.5,0.0011]
[1772811928883,1.25995363,1984.2,1983.5,0.0011]
[1772811929384,1.25995363,1984.2,1983.6,0.0011]
[1772811929385,1.64772142,1984.1,1983.6,0.0011]
[1772811930881,1.26008064,1984.0,1983.6,0.0011]
[1772811931178,2.90780206,1984.0,1983.5,0.0011]
[1772811932455,1.65485833,1983.9,1983.5,0.0011]
[1772811932890,1.65485833,1983.7,1983.3,0.0011]
[1772811933058,1.65485833,1983.7,1982.8,0.0011]
[1772811933774,3.75673918,1983.8,1982.8,0.0011]
[1772811933775,1.65485833,1983.5,1982.8,0.0011]
[1772811934690,1.24,1983.4,1982.8,0.0011]
[1772811934933,1.26052538,1983.3,1982.8,0.0011]
[1772811935387,2.91538371,1983.3,1982.8,0.0011]
[1772811935555,1.65485833,1983.2,1982.8,0.0011]
[1772811937085,1.65485833,1983.0,1982.6,0.0011]
[1772811937287,1.65485833,1983.0,1981.7,1.61150299]
[1772811937490,1.65485833,1982.9,1981.7,1.61150299]
[1772811939196,2.91570158,1982.8,1981.8,2.87298245]
[1772811939502,2.91570158,1982.8,1981.9,1.61150299]
[1772811941217,2.91570158,1982.8,1982.0,1.26135216]
[1772811941412,2.91570158,1982.8,1981.6,1.61150299]
[1772811941413,1.65485833,1982.7,1981.6,1.61150299]
[1772811941608,1.65485833,1982.7,1981.6,2.44150299]
[1772811942100,1.65485833,1982.7,1981.6,1.61150299]
[1772811942608,1.65485833,1982.7,1981.6,2.44150299]
[1772811943009,1.65485833,1982.7,1981.6,2.39150299]
[1772811943333,1.65485833,1982.5,1981.8,0.0011]
[1772811943702,1.65485833,1982.4,1981.8,0.0011]
[1772811943933,2.50097044,1982.6,1981.8,0.0011]
[1772811944135,2.50097044,1982.6,1981.8,1.61260299]
[1772811944324,4.15582877,1982.6,1981.8,0.0011]
[1772811945314,2.91570158,1982.9,1982.0,1.61150299]
[1772811945713,2.91570158,1982.9,1981.8,2.09254524]
[1772811945714,1.65485833,1982.8,1981.8,2.09254524]
[1772811945937,1.65485833,1982.8,1981.9,1.61150299]
[1772811947534,1.26090684,1982.7,1982.0,1.26135216]
[1772811949209,1.26090684,1982.7,1982.0,2.87285515]
[1772811950039,1.26090684,1982.7,1982.0,2.87284856]
[1772811950356,1.26090684,1982.7,1981.8,1.262535]
[1772811950357,1.65485833,1982.6,1981.8,1.262535]
[1772811950657,1.65485833,1982.6,1981.8,1.26257373]
[1772811951010,1.26090684,1982.7,1981.9,1.61150299]
[1772811951615,6.69811575,1982.9,1982.0,1.26135216]
[1772811951616,5.04350589,1982.8,1982.0,1.26135216]
[1772811951820,1.26084325,1982.8,1982.0,2.87285515]
[1772811952016,1.26078182,1982.9,1982.1,1.61150299]
[1772811952222,1.26078182,1982.9,1982.3,1.61150299]
[1772811952916,5.04274021,1983.1,1982.3,1.61150299]
[1772811953141,1.26065251,1983.1,1982.3,1.61150299]
[1772811953307,1.26163261,1983.2,1982.3,1.61150299]
[1772811954027,0.001,1983.2,1982.5,1.61150299]
[1772811954843,1.65485833,1983.1,1982.2,3.7026797]
[1772811955019,1.65485833,1983.1,1982.2,2.87271836]
[1772811955345,1.65485833,1983.1,1982.1,0.83]
[1772811955544,1.65485833,1983.1,1982.0,0.83]
[1772811955834,1.65585833,1983.1,1982.0,0.83]
[1772811956004,1.55112219,1982.9,1982.0,2.09133826]
[1772811956206,1.55112219,1982.9,1982.0,0.83]
[1772811956407,1.55112219,1982.9,1982.0,2.09131173]
[1772811957016,1.55112219,1982.9,1982.0,0.83]
[1772811957213,1.55112219,1982.9,1982.0,2.09133345]
[1772811957708,1.55112219,1982.9,1982.0,3.77833615]
[1772811958341,1.55112219,1982.7,1981.8,1.26255668]
[1772811958939,1.26084325,1982.8,1981.9,1.6870027]
[1772811959106,2.81196544,1982.8,1981.9,1.6870027]
[1772811960316,1.26084325,1982.8,1982.1,1.6870027]
[1772811960835,1.26084325,1982.8,1982.1,2.5170027]
[1772811961039,1.55112219,1982.7,1982.1,0.83]
[1772811961336,1.55112219,1982.7,1981.9,2.94836804]
[1772811961650,1.26084325,1982.8,1982.1,1.63175688]
[1772811961824,1.26082165,1982.9,1982.2,1.63175688]
[1772811962311,0.001,1983.1,1982.3,1.26116127]
[1772811962511,0.001,1983.1,1982.4,1.63175688]
[1772811963015,0.001,1983.1,1982.5,0.83]
[1772811963918,0.001,1983.1,1982.3,0.83]
[1772811963919,1.57210445,1983.1,1982.3,0.83]
[1772811964663,2.83182053,1983.0,1982.2,0.83]
[1772811964827,1.57110445,1982.9,1982.1,4.31536965]
[1772811965021,1.57110445,1982.9,1982.1,5.14536965]
[1772811965419,1.57110445,1982.9,1982.1,6.40665691]
[1772811965619,1.57110445,1982.9,1982.2,1.63175688]
[1772811966263,1.57110445,1982.9,1982.1,0.83]
[1772811966617,1.26084325,1982.8,1982.1,2.09128009]
[1772811966825,1.26084325,1982.8,1982.1,0.83]
[1772811967117,1.57110445,1982.7,1981.8,0.0011]
[1772811967744,1.26084325,1982.8,1981.9,1.44248401]
[1772811968045,1.26184325,1982.8,1981.9,1.44248401]
[1772811968746,1.57210445,1982.8,1982.0,1.43996142]
[1772811969044,1.57210445,1982.8,1981.8,0.0011]
[1772811969841,1.57210445,1982.8,1981.8,2.700022]
[1772811970043,1.57210445,1982.8,1981.9,1.43745232]
[1772811970827,1.57110445,1982.6,1981.9,1.43745232]
[1772811971029,1.57110445,1982.6,1981.8,0.0011]
[1772811972814,1.26103404,1982.5,1981.8,0.0011]
[1772811973019,1.57110445,1982.4,1981.8,0.0011]
[1772811973945,1.26093424,1982.7,1981.9,1.4209906]
[1772811974914,1.26093424,1982.7,1981.8,0.0011]
[1772811974915,1.57110445,1982.6,1981.8,0.0011]
[1772811975939,1.57110445,1982.6,1981.8,1.41394138]
[1772811976724,1.26093424,1982.7,1981.8,1.41394138]
[1772811977123,5.04450778,1982.8,1982.0,1.40879133]
[1772811978184,1.57110445,1982.7,1981.8,0.0011]
[1772811978830,1.57110445,1982.7,1981.8,1.26257351]
[1772811979033,1.57110445,1982.7,1981.8,0.0011]
[1772811979235,1.57110445,1982.5,1981.8,0.0011]
[1772811981562,1.26109765,1982.4,1981.8,1.26257946]
[1772811981734,1.26109765,1982.4,1981.8,0.0011]
[1772811981931,2.8322021,1982.4,1981.8,0.0011]
[1772811982129,1.57110445,1982.3,1981.8,0.0011]
[1772811983938,1.2612249,1982.2,1981.8,0.0011]
[1772811985265,2.83232935,1982.2,1981.8,0.0011]
[1772811985660,1.57110445,1982.1,1981.8,0.0011]
[1772811985839,2.83245661,1982.0,1981.8,0.0011]
[1772811986243,2.83245661,1982.0,1981.5,0.0011]
[1772811986244,5.04504567,1982.2,1981.5,0.0011]
[1772811986443,5.04504567,1982.2,1981.5,1.37405534]
[1772811986647,6.61615012,1982.2,1981.5,0.0011]
[1772811986857,1.57110445,1982.1,1981.5,0.0011]
[1772811988252,1.57110445,1981.9,1981.5,0.0011]
[1772811989052,1.57110445,1981.9,1981.3,7e-08]
[1772811990268,2.83258391,1981.8,1981.3,7e-08]
[1772811990468,1.26146774,1981.9,1981.3,7e-08]
[1772811992272,5.04566325,1982.0,1981.4,0.0011]
[1772811992454,1.009,1982.4,1981.4,1.35813276]
[1772811992455,1.26109765,1982.4,1981.4,1.35813276]
[1772811992657,1.26209765,1982.4,1981.4,1.35813276]
[1772811993566,2.87113675,1982.4,1981.4,1.35813276]
[1772811993871,1.6090391,1982.3,1981.4,1.35813276]
[1772811994072,1.6090391,1982.3,1981.5,0.831]
[1772811994672,1.6090391,1982.1,1981.5,0.831]
[1772811994875,1.6090391,1982.1,1981.4,0.0011]
[1772811995074,1.6090391,1982.1,1981.1,0.8321]
[1772811995279,1.6090391,1982.1,1981.1,2.09402379]
[1772811995464,1.6090391,1982.1,1981.1,0.8321]
[1772811995667,1.6090391,1982.1,1981.1,2.09402514]
[1772811995861,1.6090391,1982.1,1981.1,2.09402161]
[1772811996057,1.6090391,1982.1,1981.1,0.8321]
[1772811996563,1.6090391,1982.1,1981.1,0.0011]
[1772811996768,1.6090391,1981.9,1981.1,0.0011]
[1772811997777,1.6090391,1981.7,1981.1,0.0011]
[1772811998857,1.26160678,1981.6,1980.1,1.56025163]
[1772811999057,1.6090391,1981.1,1980.1,1e-08]
[1772811999652,1.6090391,1981.1,1980.1,1.26254904]
[1772811999949,1.6090391,1981.1,1980.1,2.59888388]
[1772812000149,1.6090391,1981.1,1980.1,1.33633485]
[1772812000369,1.6090391,1981.1,1980.1,2.59888842]
[1772812001151,2.87102799,1981.0,1980.1,1.33633485]
[1772812001354,2.87102799,1981.0,1980.1,1e-08]
[1772812001355,1.6090391,1980.9,1980.1,1e-08]
[1772812002083,1.6090391,1980.9,1980.1,1.2625548]
[1772812002755,1.6090391,1980.9,1980.1,1.26255904]
[1772812003453,1.6090391,1980.9,1980.1,2.58757974]
[1772812003653,2.87109188,1980.9,1980.1,2.58757974]
[1772812003850,2.87109188,1980.9,1980.2,0.83]
[1772812004159,1.6090391,1980.8,1980.1,1e-08]
[1772812005091,1.6090391,1980.5,1979.2,1.26310005]
[1772812005258,1.6090391,1980.5,1979.3,1.26306098]
[1772812005459,1.6090391,1980.3,1979.3,1.26303228]
[1772812005656,1.6090391,1980.3,1980.0,0.0011]
[1772812005890,1.6090391,1980.1,1979.0,0.89230812]
[1772812006052,1.6090391,1980.1,1979.9,0.0011]
[1772812006388,1.6090391,1980.1,1979.4,1.42317732]
[1772812006565,1.6090391,1980.1,1979.4,0.1602027]
[1772812007388,1.6090391,1979.9,1979.4,0.1602027]
[1772812008157,1.6090391,1979.9,1979.4,1e-08]
[1772812008361,5.05050505,1980.1,1979.4,1.26300272]
[1772812008362,2.87165126,1980.1,1979.4,1.26300272]
[1772812008576,1.6090391,1980.1,1979.4,1.26300272]
[1772812008763,2.87141204,1980.4,1979.5,0.829]
[1772812009363,2.87141204,1980.4,1979.6,1.26288139]
[1772812009884,1.6090391,1980.3,1979.4,1.26295753]
[1772812010383,1.6090391,1980.3,1979.4,2.56783775]
[1772812011357,1.26216248,1980.8,1979.7,1.40056359]
[1772812011683,2.87120158,1980.8,1979.7,1.40056359]
[1772812011856,1.6090391,1980.7,1979.7,1.40056359]
[1772812012586,2.87106135,1981.0,1979.7,1.40056359]
[1772812012761,2.87103901,1981.0,1979.7,1.40056359]
[1772812012968,1.6090391,1981.3,1979.7,1.40056359]
[1772812013462,2.87083859,1981.3,1979.9,1.3962457]
[1772812013663,2.87085288,1981.3,1980.3,1.39268013]
[1772812013962,1.26175177,1981.4,1980.3,1.39268013]
[1772812014377,2.87079087,1981.4,1980.3,1.39268013]
[1772812015560,2.87079087,1981.4,1980.4,2.65133413]
[1772812016496,2.87079087,1981.4,1980.5,1.38541559]
[1772812016691,2.87079087,1981.4,1980.3,1.2624339]
[1772812016692,1.58636366,1981.3,1980.3,1.2624339]
[1772812016861,1.58636366,1981.3,1980.3,2.0914339]
[1772812017184,2.85358384,1981.6,1980.6,1.38186554]
[1772812017387,1.58636366,1981.5,1980.6,1.38186554]
[1772812017590,1.58636366,1981.4,1980.5,2.056327]
[1772812017900,1.58736366,1981.2,1980.3,0.829]
[1772812018388,1.58736366,1981.2,1980.3,2.20732742]
[1772812018883,1.08992354,1981.2,1980.3,2.20732742]
[1772812019695,1.26192519,1981.1,1980.4,2.09137123]
[1772812019894,1.26192519,1981.1,1980.5,0.829]
[1772812020101,1.26192519,1981.1,1980.4,1.26237123]
[1772812020294,1.26192519,1981.1,1980.5,0.829]
[1772812020503,1.26192519,1981.1,1980.1,2.056327]
[1772812020504,1.58636366,1981.0,1980.1,2.056327]
[1772812020792,1.58636366,1981.0,1980.2,0.829]
[1772812020966,1.26192519,1981.1,1980.2,2.30003998]
[1772812021388,1.26192519,1981.1,1980.2,0.829]
[1772812021563,1.2620526,1980.9,1980.2,0.829]
[1772812021765,2.79752796,1980.9,1980.2,0.829]
[1772812022263,1.2620526,1980.9,1980.1,0.829]
[1772812022466,2.79751443,1981.0,1980.1,2.29499346]
[1772812022696,1.53547536,1980.9,1980.1,0.829]
[1772812024090,1.26211631,1980.8,1980.1,2.09151473]
[1772812024262,1.26211631,1980.8,1980.1,2.09153978]
[1772812024665,2.79759167,1980.8,1980.1,2.09153978]
[1772812025279,2.79759167,1980.8,1980.1,1.26253978]
[1772812025480,2.79759167,1980.8,1980.1,2.09153978]
[1772812026791,1.26186149,1981.2,1980.3,1.46599346]
[1772812027291,2.79733685,1981.2,1980.3,1.46599346]
[1772812028003,0.00555107,1981.6,1980.3,1.46599346]
[1772812028497,0.00555107,1981.6,1980.2,2.55276712]
[1772812028498,0.00555107,1981.6,1980.5,1.46599346]
[1772812028712,0.00555107,1981.6,1980.7,1.46599346]
[1772812028903,0.00555107,1981.6,1980.9,1.46599346]
[1772812029079,1e-08,1981.6,1980.9,1.46599346]
[1772812029804,5.04556163,1982.4,1980.9,1.20875577]